bitfinex/quotes_ETHUSD_20250715
["timestamp","ask_amount","ask_price","bid_price","bid_amount"]
[1752591260977,36.41076442,2991.6,2991.3,0.002]
[1752591261174,3.34291636,2991.4,2991.3,0.002]
[1752591261378,33.38468078,2991.4,2991.3,0.002]
[1752591261698,39.70791636,2991.4,2991.3,0.002]
[1752591261893,30.0,2991.4,2991.3,0.002]
[1752591262225,3.34291636,2991.4,2991.3,0.002]
[1752591262431,33.38468078,2991.4,2991.3,0.002]
[1752591262646,33.34291636,2991.4,2991.3,0.002]
[1752591262816,34.86391636,2991.4,2991.3,0.002]
[1752591263140,41.21591636,2991.4,2991.3,1e-08]
[1752591263303,4.86391636,2991.4,2991.3,1e-08]
[1752591263499,41.25968078,2991.4,2991.3,1e-08]
[1752591263704,41.21791636,2991.4,2991.3,1e-08]
[1752591264601,34.86391636,2991.4,2991.3,1e-08]
[1752591265144,11.20691636,2991.4,2991.3,1e-08]
[1752591265440,41.20691636,2991.4,2991.3,1e-08]
[1752591266302,3.34313987,2991.2,2990.1,1e-08]
[1752591266499,3.34415618,2990.3,2990.1,1e-08]
[1752591266736,3.34406025,2990.4,2990.1,1e-08]
[1752591266962,6.335,2990.4,2990.1,1e-08]
[1752591267243,6.37476442,2990.3,2990.1,1e-08]
[1752591267455,33.3442579,2990.2,2990.1,1e-08]
[1752591267602,3.3442579,2990.2,2990.1,1e-08]
[1752591267939,1.6489,2990.4,2990.1,1e-08]
[1752591267940,4.99295371,2990.4,2990.1,1e-08]
[1752591268143,1.57686442,2990.9,2990.1,1e-08]
[1752591268343,8.96049909,2991.6,2990.1,0.34628203]
[1752591268638,7.89486442,2991.5,2990.4,3.34402963]
[1752591268844,39.65797654,2991.4,2990.5,0.03343922]
[1752591268997,33.38481531,2991.3,2990.5,0.03343922]
[1752591269204,30.0,2991.2,2990.1,1e-08]
[1752591269399,8.96049909,2991.0,2990.1,1e-08]
[1752591269763,3.3442579,2990.2,2990.1,1e-08]
[1752591270125,0.04176442,2990.4,2990.1,1e-08]
[1752591270326,6.309,2990.3,2990.1,1e-08]
[1752591270526,33.38602232,2990.2,2990.1,1e-08]
[1752591270728,33.3442579,2990.2,2990.1,1e-08]
[1752591271331,6.299,2990.2,2990.1,1e-08]
[1752591271656,9.6392579,2990.2,2990.1,1e-08]
[1752591272431,6.291,2990.3,2990.1,1e-08]
[1752591272637,3.3442579,2990.2,2990.1,1e-08]
[1752591272823,3.38602232,2990.2,2990.1,1e-08]
[1752591273157,6.284,2990.2,2990.1,1e-08]
[1752591273330,3.34401981,2990.5,2990.1,1e-08]
[1752591273540,3.3442579,2990.2,2990.1,1e-08]
[1752591273740,34.04899716,2990.2,2990.1,1e-08]
[1752591274051,14.88576975,2990.1,2990.0,1e-08]
[1752591274358,51.16176975,2990.1,2990.0,1e-08]
[1752591274554,3.34537668,2989.2,2989.1,0.04]
[1752591274855,39.61637668,2989.2,2989.1,0.04]
[1752591275254,41.15777668,2989.2,2989.1,0.04]
[1752591275457,41.15777668,2989.2,2987.9,0.03346832]
[1752591275458,3.34649621,2988.2,2987.9,0.03346832]
[1752591275643,9.61249621,2988.2,2987.8,0.03346944]
[1752591275977,9.61249621,2988.2,2987.2,1.5057]
[1752591276143,9.60949621,2988.2,2987.3,0.03347504]
[1752591276318,9.60949621,2988.2,2987.3,3.38091848]
[1752591276524,9.60949621,2988.2,2987.3,0.03347504]
[1752591276745,9.60949621,2988.2,2987.2,1.5057]
[1752591277057,13.34660821,2988.1,2986.4,1.5057]
[1752591277266,3.34735019,2987.5,2986.6,3.34826184]
[1752591277473,30.0,2987.4,2986.7,0.03348176]
[1752591277834,6.30576442,2987.3,2986.4,1.5057]
[1752591278343,33.34761649,2987.2,2986.5,0.03348401]
[1752591278545,8.96049909,2987.7,2986.5,0.03348401]
[1752591278751,3.34735485,2987.5,2986.8,3.34806152]
[1752591278948,6.258,2987.4,2987.1,0.03347729]
[1752591279131,0.04176442,2987.3,2987.1,1e-08]
[1752591279331,6.259,2987.4,2987.1,1e-08]
[1752591279732,3.34761649,2987.2,2987.1,1e-08]
[1752591279935,33.34761649,2987.2,2987.1,1e-08]
[1752591280134,1.5166,2987.4,2987.1,1e-08]
[1752591280358,39.64427414,2987.3,2987.1,1e-08]
[1752591280572,8.96049909,2988.3,2987.1,1e-08]
[1752591280573,3.34629512,2988.4,2987.1,1e-08]
[1752591280876,0.04176442,2988.3,2987.2,3.34761649]
[1752591281080,8.034,2989.0,2987.9,1.5854]
[1752591281081,9.5343,2989.0,2987.9,1.5854]
[1752591281264,6.29576442,2988.9,2988.1,3.34650142]
[1752591281573,8.96049909,2989.6,2987.9,4.93213511]
[1752591281574,1.5709,2989.7,2988.2,0.03346496]
[1752591281735,0.84852445,2990.6,2988.5,3.34616028]
[1752591281936,0.84852445,2990.6,2989.5,3.34503304]
[1752591281937,9.59609999,2990.4,2989.5,3.34503304]
[1752591282176,6.252,2990.4,2989.6,1.54564929]
[1752591282376,3.34473231,2989.8,2989.2,1.5122]
[1752591282589,3.3448271,2989.7,2988.7,1.5122]
[1752591282737,30.04176442,2989.6,2988.7,1.5122]
[1752591282936,45.21749909,2989.5,2988.1,1.5122]
[1752591283139,30.04176442,2989.4,2988.2,0.03346496]
[1752591283337,3.34557135,2989.1,2988.2,0.03346496]
[1752591283585,3.38460563,2989.9,2988.2,0.03346496]
[1752591283791,3.38460405,2989.9,2989.0,4.85778908]
[1752591284102,3.34551401,2989.1,2988.5,1.5122]
[1752591284385,30.04176442,2989.0,2987.8,1.5122]
[1752591284551,30.04176442,2989.0,2987.9,0.03346832]
[1752591284552,6.251,2988.9,2987.9,0.03346832]
[1752591284751,6.251,2988.9,2987.9,3.34675987]
[1752591284952,3.34604958,2988.6,2987.8,1.5122]
[1752591285166,3.34604831,2988.6,2987.8,1.99812121]
[1752591285481,30.04176442,2988.5,2987.8,1.5122]
[1752591285777,6.251,2988.8,2987.8,1.5122]
[1752591285778,3.34651319,2988.2,2987.8,1.5122]
[1752591286077,3.34653354,2988.2,2987.3,1.5902]
[1752591286263,6.28076442,2988.6,2987.4,0.03347392]
[1752591286463,6.239,2988.6,2987.7,3.34697483]
[1752591286681,3.34638201,2988.4,2987.8,0.03346944]
[1752591286864,3.3461927,2988.5,2987.8,0.03346944]
[1752591287066,3.3461927,2988.5,2987.3,4.9376783]
[1752591287067,6.235,2988.3,2987.3,1.5902]
[1752591287268,3.34672021,2988.0,2987.1,1e-08]
[1752591287468,30.04176442,2987.9,2987.1,1e-08]
[1752591287666,6.234,2987.8,2987.2,1.5214]
[1752591287868,30.04176442,2987.7,2987.1,1e-08]
[1752591288066,3.34761649,2987.2,2987.1,1e-08]
[1752591288267,0.04176442,2987.4,2987.1,1e-08]
[1752591288508,0.04176442,2988.0,2987.1,1e-08]
[1752591288684,0.5,2990.2,2987.1,1e-08]
[1752591288685,6.228,2988.4,2987.2,3.34755226]
[1752591288849,0.04176442,2988.4,2987.3,1.97743027]
[1752591289046,30.0,2988.3,2987.3,1.6092]
[1752591289354,3.34612451,2988.6,2987.6,3.34714026]
[1752591289554,11.6107,2988.9,2987.3,1.6092]
[1752591289555,9.57416967,2988.5,2987.7,0.03347056]
[1752591289756,9.57416967,2988.5,2987.3,1.6092]
[1752591289757,30.04176442,2988.4,2987.3,1.6092]
[1752591289960,30.04176442,2988.3,2987.3,1.6092]
[1752591290158,3.34672021,2988.0,2987.3,1.6092]
[1752591290466,6.26676442,2987.9,2987.1,1e-08]
[1752591290799,6.223,2987.8,2987.1,1e-08]
[1752591291100,0.04176442,2987.7,2987.1,1e-08]
[1752591291246,6.26576442,2987.7,2987.1,1e-08]
[1752591291592,30.0,2987.6,2987.1,1e-08]
[1752591291887,3.34761649,2987.2,2987.1,1e-08]
[1752591292045,3.38928746,2987.3,2987.1,1e-08]
[1752591292258,3.34761649,2987.2,2987.1,1e-08]
[1752591292592,0.04176442,2987.3,2987.1,1e-08]
[1752591292799,6.212,2987.7,2987.1,1e-08]
[1752591293109,0.04176442,2987.9,2987.1,1e-08]
[1752591293391,6.21,2987.9,2987.2,4.95348911]
[1752591293572,6.21,2987.9,2987.3,0.03347504]
[1752591293753,9.59462097,2987.9,2987.2,1.6059]
[1752591293957,3.34697757,2987.8,2987.2,1.6059]
[1752591294290,6.206,2987.9,2985.8,1.6059]
[1752591294291,8.96049909,2987.3,2985.8,1.6059]
[1752591294495,5.0132447,2987.6,2985.8,1.6059]
[1752591294496,30.04176442,2987.2,2985.8,1.6059]
[1752591294662,0.04176442,2987.1,2985.9,0.03349073]
[1752591294851,0.04176442,2987.1,2986.1,0.07348849]
[1752591295053,0.04176442,2987.5,2986.2,1.6059]
[1752591295350,0.04176442,2988.0,2987.2,1.6059]
[1752591295561,0.04176442,2988.3,2987.3,0.03347504]
[1752591295761,0.04176442,2988.6,2987.3,0.5321773]
[1752591295986,6.285,2988.8,2987.8,3.34688719]
[1752591296180,6.285,2988.8,2988.1,1.6059]
[1752591296384,3.34540469,2989.2,2988.2,3.37995451]
[1752591296582,0.04176442,2989.6,2988.2,0.03346496]
[1752591296784,0.04,2988.9,2988.2,0.03346496]
[1752591297145,0.04,2988.9,2988.2,3.37995877]
[1752591297350,0.04,2988.9,2988.4,3.34617906]
[1752591297546,0.04,2988.9,2988.4,0.03346272]
[1752591297748,3.34616028,2988.5,2988.4,0.03346272]
[1752591298063,1.72246442,2988.9,2987.6,1.618]
[1752591298254,0.04,2988.9,2987.6,1.618]
[1752591298453,0.04,2988.9,2987.9,1.618]
[1752591298650,0.04,2988.9,2988.8,3.34582441]
[1752591298854,0.04,2988.9,2988.1,1.618]
[1752591299967,30.0,2988.8,2988.1,1.618]
[1752591300187,0.04,2988.9,2987.3,1.5365]
[1752591300389,0.04,2988.9,2987.5,3.34724406]
[1752591300390,3.84627485,2988.4,2987.5,3.34724406]
[1752591300698,0.5,2988.2,2987.4,3.34738163]
[1752591300858,0.5,2988.2,2987.6,0.03347168]
[1752591301064,3.38577607,2988.9,2986.8,3.34801902]
[1752591301065,0.5,2988.4,2987.7,3.34695673]
[1752591301259,0.5,2988.5,2987.8,3.38037392]
[1752591301473,0.5,2988.2,2987.8,0.6727519]
[1752591301673,0.5,2988.2,2986.7,3.34817691]
[1752591301861,0.5,2988.4,2986.8,0.03348064]
[1752591302061,4.89763289,2988.9,2986.6,8.037]
[1752591302062,0.5,2988.2,2986.7,10.03348176]
[1752591302257,0.5,2988.2,2986.6,8.037]
[1752591302258,0.5,2988.0,2986.8,3.34798972]
[1752591302457,0.5,2986.3,2984.1,1.04533]
[1752591302658,1.6474,2987.1,2984.3,3.35086143]
[1752591302659,3.34983443,2985.3,2984.3,3.35086143]
[1752591302863,0.09779566,2985.8,2984.1,0.04]
[1752591303065,0.04176442,2985.8,2984.1,0.04]
[1752591303271,3.34904182,2986.0,2985.2,1.5084]
[1752591303467,3.34844037,2986.5,2985.4,3.34963488]
[1752591303669,1.6561,2987.0,2985.4,3.34963488]
[1752591303670,3.44631732,2986.4,2985.5,0.37180846]
[1752591303905,0.09779566,2986.4,2985.5,0.37180846]
[1752591304104,0.09779566,2985.9,2985.2,1.5084]
[1752591304609,0.09779566,2985.4,2985.3,0.03349747]
[1752591304789,0.09779566,2985.4,2984.8,1.5339]
[1752591304992,0.09779566,2985.9,2984.9,0.03350195]
[1752591305291,0.09779566,2986.0,2985.2,0.03349859]
[1752591305494,0.09779566,2985.8,2984.8,1.5339]
[1752591305682,3.34955639,2985.5,2984.9,0.03350195]
[1752591306026,0.09779566,2985.7,2985.0,3.35007543]
[1752591306300,0.09779566,2985.7,2985.2,0.03349859]
[1752591306479,3.44762168,2985.3,2984.9,0.03350195]
[1752591306668,3.3498593,2985.2,2984.9,0.03350195]
[1752591306866,31.6519,2985.2,2984.2,0.03850981]
[1752591307070,31.6519,2985.2,2984.2,0.005]
[1752591307071,0.09779566,2984.4,2984.2,0.005]
[1752591307274,0.04176442,2984.7,2984.2,0.005]
[1752591307600,8.96049909,2985.2,2984.2,0.005]
[1752591307601,0.09779566,2985.1,2984.2,0.03850981]
[1752591308115,0.09779566,2984.6,2984.2,0.005]
[1752591308416,0.09779566,2984.3,2984.2,0.005]
[1752591308714,0.09779566,2984.7,2984.5,3.35054545]
[1752591308915,9.21593594,2985.9,2984.6,0.03350532]
[1752591308916,6.239,2985.4,2984.6,0.03350532]
[1752591309215,0.09779566,2984.8,2984.2,0.03850981]
[1752591309416,0.09779566,2985.0,2984.4,3.35075727]
[1752591309617,0.09779566,2985.0,2984.5,0.37193304]
[1752591309910,0.09779566,2985.3,2985.0,3.34999729]
[1752591310112,0.09779566,2985.3,2985.1,0.03349971]
[1752591310288,0.09779566,2985.3,2984.7,0.0335042]
[1752591310488,0.09779566,2985.3,2984.6,1.5619]
[1752591310678,6.227,2985.7,2984.6,1.5619]
[1752591310679,0.09779566,2985.1,2984.6,1.5619]
[1752591310886,0.09779566,2984.5,2984.2,0.005]
[1752591311082,3.35086955,2984.3,2984.2,0.005]
[1752591311501,9.66766521,2984.3,2984.2,0.005]
[1752591311680,41.32236521,2984.3,2984.2,0.005]
[1752591311881,41.32236521,2984.3,2984.1,0.04]
[1752591311882,3.44933904,2983.7,2983.6,0.01410533]
[1752591312082,39.66133904,2983.7,2983.6,0.01410533]
[1752591312485,13.44990078,2983.2,2983.1,0.04]
[1752591312697,0.09779566,2982.3,2982.1,0.07353341]
[1752591313034,6.223,2982.5,2982.1,0.04]
[1752591313184,0.09779566,2982.5,2982.4,3.35300429]
[1752591313389,0.13956008,2983.1,2982.2,1.5702]
[1752591313589,0.09779566,2983.4,2982.6,3.35276186]
[1752591313888,8.96049909,2984.1,2983.2,3.35200875]
[1752591314115,8.96049909,2984.1,2983.3,0.03351992]
[1752591314116,0.09779566,2983.7,2983.3,0.03351992]
[1752591314283,0.09779566,2983.3,2982.8,0.03352554]
[1752591314482,0.09779566,2983.3,2982.2,1.5702]
[1752591314483,0.09779566,2983.6,2982.3,0.03353116]
[1752591314728,6.217,2983.8,2983.3,3.35192232]
[1752591314956,0.09779566,2983.8,2983.4,0.0335188]
[1752591315233,0.09779566,2983.4,2983.3,0.67040842]
[1752591315438,3.44974895,2983.4,2982.7,1.5195]
[1752591315644,30.04176442,2983.3,2982.2,1.5195]
[1752591315811,0.09779566,2982.8,2982.2,1.5195]
[1752591316011,0.09779566,2982.8,2982.1,0.04]
[1752591316333,0.09779566,2983.2,2982.2,0.03353229]
[1752591316538,1.5977,2983.7,2982.1,0.04]
[1752591316539,0.09779566,2983.0,2982.1,0.04]
[1752591316840,0.09779566,2982.5,2982.1,0.04]
[1752591317201,0.09779566,2982.3,2982.1,0.04]
[1752591317405,0.09779566,2982.7,2982.1,0.04]
[1752591317631,0.09779566,2982.7,2982.3,3.35304861]
[1752591317831,0.09779566,2982.7,2982.3,0.67798942]
[1752591318143,1.5977,2983.7,2982.4,0.03353004]
[1752591318301,0.04176442,2983.6,2982.4,0.03353004]
[1752591318641,0.09779566,2983.4,2983.2,3.3520046]
[1752591318930,0.09779566,2983.4,2982.5,1.5772]
[1752591318931,0.09779566,2983.4,2982.8,3.35254289]
[1752591319142,0.04176442,2983.5,2982.9,0.03352442]
[1752591319354,0.13956008,2983.6,2982.9,0.03352442]
[1752591319503,0.09779566,2984.1,2983.6,3.35164455]
[1752591319706,0.09779566,2984.1,2983.4,3.35186914]
[1752591319707,0.09779566,2984.1,2983.5,1.69651768]
[1752591320011,0.09779566,2984.3,2983.5,2.20135223]
[1752591320344,0.09779566,2983.4,2982.6,1.5319]
[1752591320638,0.09779566,2983.6,2983.1,3.35219552]
[1752591320842,0.09779566,2983.7,2983.2,0.03352105]
[1752591321012,0.09779566,2983.9,2982.7,0.03352667]
[1752591321197,0.09779566,2983.9,2982.8,0.03352554]
[1752591321402,0.44269582,2983.9,2982.6,1.5319]
[1752591321706,0.09779566,2983.5,2982.9,3.35235742]
[1752591322004,6.32079566,2983.5,2982.6,1.5319]
[1752591322225,0.09779566,2983.3,2982.7,0.03352667]
[1752591322432,0.09779566,2983.3,2982.9,3.35237437]
[1752591322632,0.09779566,2983.3,2983.0,0.03352329]
[1752591322938,0.09779566,2983.3,2983.0,0.37211306]
[1752591323237,0.09779566,2983.6,2983.2,3.35210512]
[1752591323553,0.09779566,2983.6,2983.5,3.35176805]
[1752591323744,0.09779566,2983.9,2983.8,3.35135401]
[1752591324041,0.04,2984.9,2984.4,3.350651]
[1752591324245,0.13779566,2984.9,2984.5,0.03350644]
[1752591324540,0.13779566,2984.9,2983.0,10.0]
[1752591324541,0.09779566,2984.1,2982.5,3.35282443]
[1752591324845,0.09779566,2983.8,2982.6,1.61712779]
[1752591325148,0.09779566,2983.9,2982.6,1.5836]
[1752591325351,0.09779566,2983.9,2982.7,0.03352667]
[1752591325946,0.09779566,2983.9,2983.1,3.35216209]
[1752591326150,0.09779566,2983.9,2983.2,0.703961]
[1752591326443,3.35076989,2984.4,2983.8,3.35134449]
[1752591326444,0.09779566,2984.4,2983.8,3.35134449]
[1752591326751,0.09779566,2984.6,2984.3,3.35079297]
[1752591326951,0.09779566,2984.6,2983.7,1.514]
[1752591327155,0.09779566,2984.6,2983.8,3.35142959]
[1752591327448,0.09779566,2984.5,2984.1,3.35101189]
[1752591327614,0.09779566,2984.3,2983.9,0.48654296]
[1752591327812,0.09779566,2984.3,2983.7,1.514]
[1752591328040,0.09779566,2984.1,2983.8,0.03351431]
[1752591328243,0.09779566,2983.8,2983.5,0.03351768]
[1752591328628,0.09779566,2983.6,2983.5,0.03351768]
[1752591328841,3.44984795,2983.3,2982.8,1.5403]
[1752591329046,3.44984795,2983.3,2982.4,3.35293338]
[1752591329047,0.09779566,2982.8,2982.5,3.35286251]
[1752591329252,0.09779566,2982.8,2982.5,3.35286958]
[1752591329451,3.35179086,2983.5,2982.7,3.35266704]
[1752591329452,0.09779566,2983.0,2982.7,3.35266704]
[1752591329652,0.09779566,2983.0,2982.5,1.29713625]
[1752591329817,0.09779566,2983.2,2982.8,3.35246446]
[1752591330024,0.09779566,2983.2,2982.5,4.65000882]
[1752591330225,0.09779566,2983.2,2982.6,0.62205088]
[1752591330730,0.09779566,2983.2,2982.4,1.5705]
[1752591330731,0.09779566,2982.9,2982.4,1.5705]
[1752591330933,0.09779566,2982.9,2982.1,0.04]
[1752591331241,0.09779566,2982.9,2982.3,3.35311672]
[1752591331415,0.09779566,2982.9,2982.2,0.03553229]
[1752591331416,0.09779566,2983.2,2982.7,3.35256738]
[1752591331618,0.09779566,2983.9,2982.8,0.03352554]
[1752591331822,0.09779566,2983.9,2982.9,0.62285255]
[1752591332061,0.09779566,2984.4,2983.0,3.38580781]
[1752591332359,0.09779566,2984.5,2984.2,3.35087057]
[1752591332562,0.09779566,2984.8,2984.6,3.35043731]
[1752591332719,0.09779566,2985.0,2984.8,3.35030822]
[1752591332918,0.09779566,2985.0,2984.8,0.67342378]
[1752591333119,0.09779566,2985.2,2984.8,3.35030822]
[1752591333314,0.09779566,2985.6,2984.8,3.35030822]
[1752591333519,0.09779566,2985.6,2984.8,1.54460308]
[1752591333520,0.09779566,2985.4,2984.8,1.54460308]
[1752591333721,3.38908584,2985.9,2984.8,4.8949113]
[1752591333921,0.13779566,2984.9,2983.9,1.6539]
[1752591334121,0.04,2984.9,2984.0,6.22751206]
[1752591334357,0.04,2984.9,2984.8,3.35030822]
[1752591334562,0.04,2984.9,2984.8,3.3838113]
[1752591334934,0.04,2984.9,2984.5,3.35055628]
[1752591335134,0.04,2984.9,2984.1,0.78814121]
[1752591335336,0.04,2984.9,2984.8,3.35030822]
[1752591335633,0.04,2984.9,2984.8,4.9421113]
[1752591336064,0.04,2984.9,2984.8,4.90860822]
[1752591336219,0.04,2984.9,2984.8,11.1351113]
[1752591336419,0.04,2984.9,2984.8,21.10160822]
[1752591336620,0.04,2984.9,2984.8,23.88185399]
[1752591337159,1e-08,2984.9,2984.8,23.88185399]
[1752591337382,1e-08,2984.9,2984.8,23.87785399]
[1752591338541,1e-08,2984.9,2984.8,23.86585399]
[1752591338744,1e-08,2984.9,2983.3,0.25376998]
[1752591338942,1e-08,2984.9,2983.4,4.86413971]
[1752591339145,0.09779566,2984.6,2983.4,1.5123]
[1752591339386,3.35093969,2984.3,2983.5,0.03351768]
[1752591339590,0.09779566,2984.0,2983.4,1.5123]
[1752591339792,3.35165571,2983.6,2983.5,0.03351768]
[1752591339959,0.09779566,2983.7,2983.0,1.5935]
[1752591340289,0.09779566,2984.3,2984.0,1.5915]
[1752591340459,0.09779566,2984.7,2984.2,3.35098183]
[1752591340643,1e-08,2984.9,2984.3,0.37195797]
[1752591340847,1e-08,2984.9,2984.0,1.5915]
[1752591340848,0.09779566,2984.7,2984.1,3.35100355]
[1752591341088,0.09779566,2984.7,2984.2,0.03350981]
[1752591341267,0.09779566,2984.7,2984.5,3.35057016]
[1752591341492,1e-08,2984.9,2984.6,0.03350532]
[1752591341675,1e-08,2984.9,2984.8,3.35030822]
[1752591341991,1e-08,2984.9,2984.8,5.6015428]
[1752591342284,1e-08,2984.9,2984.2,1.5825]
[1752591342658,0.09779567,2984.9,2984.3,0.03350869]
[1752591342862,0.09779567,2984.9,2984.2,1.5825]
[1752591343057,0.09779567,2984.9,2984.3,0.03350869]
[1752591343459,1e-08,2984.9,2984.6,3.35042067]
[1752591343676,1e-08,2984.9,2984.8,3.35030822]
[1752591344186,1e-08,2984.9,2984.7,0.36854627]
[1752591344386,1e-08,2984.9,2984.7,0.0335042]
[1752591344554,1e-08,2984.9,2984.8,0.03350308]
[1752591344748,1e-08,2984.9,2984.8,3.3838113]
[1752591344957,1e-08,2984.9,2984.8,0.03350308]
[1752591345594,1e-08,2984.9,2984.7,3.38383187]
[1752591345595,0.09779567,2984.9,2984.7,3.38383187]
[1752591345911,1e-08,2984.9,2984.8,3.68869141]
[1752591346546,1e-08,2984.9,2984.8,0.33838319]
[1752591346750,1e-08,2984.9,2984.8,3.68869141]
[1752591346950,1e-08,2984.9,2984.8,0.33838319]
[1752591347482,1e-08,2984.9,2984.5,0.03350644]
[1752591347483,0.09779566,2984.8,2984.5,0.03350644]
[1752591347648,1e-08,2984.9,2984.7,3.35042047]
[1752591347852,1e-08,2984.9,2984.8,0.03350308]
[1752591348101,0.09779567,2984.9,2984.8,0.03350308]
[1752591348395,0.09779567,2984.9,2984.3,0.03350869]
[1752591348681,0.09779567,2984.9,2984.2,1.5825]
[1752591348682,0.09779566,2984.6,2984.2,6.129]
[1752591348887,0.09779566,2984.6,2984.3,0.64640869]
[1752591349092,0.09779566,2984.6,2984.3,0.03350869]
[1752591349277,3.44885613,2984.2,2983.4,1.6048]
[1752591349460,0.09779566,2984.2,2983.8,3.35140112]
[1752591349798,1e-08,2984.9,2984.0,3.35120643]
[1752591349799,0.09779566,2984.4,2984.0,3.35120643]
[1752591349997,0.09779566,2984.4,2984.1,0.3719829]
[1752591350286,0.09779566,2984.6,2984.1,0.3719829]
[1752591350454,1e-08,2984.9,2984.3,1.5298]
[1752591350650,1e-08,2984.9,2984.6,3.35050761]
[1752591350651,0.09779567,2984.9,2984.6,3.35050761]
[1752591350873,0.09779566,2984.7,2984.3,1.5298]
[1752591351089,3.35061345,2984.6,2984.3,0.1868272]
[1752591351295,0.09779566,2984.5,2984.4,0.03350757]
[1752591351448,3.44844065,2984.5,2984.4,0.03350757]
[1752591351653,1e-08,2984.9,2983.9,6.114]
[1752591351654,0.09779566,2984.3,2984.2,3.35098183]
[1752591351854,1e-08,2984.9,2984.0,3.38461484]
[1752591351855,0.09779566,2984.5,2984.1,3.35109413]
[1752591352151,0.09779566,2984.5,2984.4,3.35075727]
[1752591352356,0.09779566,2984.5,2984.4,0.33842671]
[1752591352554,0.09779566,2984.5,2984.4,0.37193428]
[1752591352781,0.09779566,2984.5,2984.4,0.33842671]
[1752591352983,0.09779566,2984.2,2983.3,6.111]
[1752591353196,0.09779566,2984.2,2984.1,3.35109413]
[1752591353395,0.09779566,2984.2,2983.6,3.35165571]
[1752591353396,0.09779566,2984.2,2983.5,1.5639]
[1752591353761,0.09779566,2984.2,2983.9,3.35122246]
[1752591353957,0.09779566,2984.2,2984.0,0.36863431]
[1752591354158,0.09779566,2984.2,2983.6,3.35157859]
[1752591354358,0.09779566,2984.0,2983.5,3.35172738]
[1752591354600,0.09779566,2984.0,2983.6,0.03351655]
[1752591354894,0.09779566,2983.8,2983.3,3.35197939]
[1752591355059,0.09779566,2983.6,2983.1,4.91611016]
[1752591355260,0.09779566,2983.6,2983.2,4.48740606]
[1752591355458,0.09779566,2984.1,2983.8,3.35132319]
[1752591355804,0.09779566,2984.3,2984.0,3.35114006]
[1752591356156,0.09779566,2984.3,2984.1,3.38458682]
[1752591356494,0.09779566,2984.3,2984.1,0.03351094]
[1752591356701,0.09779566,2983.9,2983.7,9.44453891]
[1752591357020,0.09779566,2984.3,2984.2,3.35098183]
[1752591357300,0.09779566,2984.3,2983.8,0.03351431]
[1752591357462,0.09779566,2984.3,2983.7,6.093]
[1752591357659,0.09779566,2984.3,2984.1,3.35101068]
[1752591358362,0.09779566,2984.7,2984.2,1.58970981]
[1752591358696,0.09779566,2984.6,2984.2,7.67770981]
[1752591358897,0.09779567,2984.9,2984.5,3.35057734]
[1752591359098,0.09779566,2984.6,2984.5,3.35057734]
[1752591359417,0.09779566,2984.6,2984.3,1.10287176]
[1752591359588,0.09779566,2984.6,2984.4,3.38423994]
[1752591359786,0.09779566,2984.6,2984.4,0.03350757]
[1752591360000,0.09779566,2984.4,2983.8,3.35143106]
[1752591360300,0.09779566,2984.1,2984.0,3.35111715]
[1752591360502,0.09779566,2983.7,2983.6,3.35165571]
[1752591360811,0.09779566,2984.3,2984.2,3.35098183]
[1752591361419,3.35022452,2984.9,2983.6,0.002]
[1752591361420,1.74109566,2984.1,2983.6,0.002]
[1752591361576,0.09779566,2983.7,2983.6,0.002]
[1752591361777,0.09779566,2983.7,2983.6,3.35365571]
[1752591362010,0.09779566,2984.0,2983.9,3.35123852]
[1752591362183,0.09779566,2984.0,2983.9,0.03351318]
[1752591362519,0.09779566,2983.7,2983.6,0.002]
[1752591362702,1.73419566,2983.7,2983.6,0.002]
[1752591363475,5.08573904,2983.7,2983.6,0.002]
[1752591364237,35.97122091,2983.7,2983.6,0.002]
[1752591364383,42.01745649,2983.7,2983.6,0.002]
[1752591364698,35.92945649,2983.7,2983.6,0.002]
[1752591364905,4.99640078,2983.2,2983.1,0.25008762]
[1752591365103,4.99640078,2983.2,2982.1,0.04]
[1752591365104,0.09779566,2982.2,2982.1,0.04]
[1752591365293,34.99752481,2982.2,2982.1,0.04]
[1752591365480,43.18813129,2982.2,2981.2,0.03354353]
[1752591365679,3.45214961,2981.2,2981.1,0.04]
[1752591365927,5.04041403,2981.2,2981.1,0.04]
[1752591366125,1.64429566,2981.2,2981.1,0.04]
[1752591366414,34.99864961,2981.2,2981.1,0.04]
[1752591366588,35.84236706,2981.2,2981.1,0.04]
[1752591366915,0.09779566,2981.2,2981.1,3.39446647]
[1752591367116,0.09779566,2981.2,2981.1,0.04]
[1752591367438,3.45214961,2981.2,2981.1,0.04]
[1752591367589,33.45214961,2981.2,2981.1,0.04]
[1752591367784,35.04074961,2981.2,2981.1,0.04]
[1752591368029,45.04074961,2981.2,2981.1,0.04]
[1752591368189,1.68639566,2980.3,2980.2,0.005]
[1752591368601,0.09779566,2980.6,2980.5,3.35514175]
[1752591368818,0.09779566,2980.6,2980.4,0.03355254]
[1752591369022,0.09779566,2980.6,2980.2,0.005]
[1752591369023,0.09779566,2980.6,2980.5,3.35514175]
[1752591369204,0.09779566,2980.6,2980.5,4.02619262]
[1752591369411,1.5732,2982.4,2981.7,3.35370211]
[1752591369609,1.5732,2982.4,2981.8,0.03353678]
[1752591369822,30.04176442,2982.3,2980.7,3.35486228]
[1752591370127,3.35235754,2983.0,2981.5,3.35396133]
[1752591370289,34.9384929,2982.9,2981.6,1.93163516]
[1752591370490,3.35269371,2982.7,2981.7,3.35379146]
[1752591370689,1.5512,2982.0,2980.8,3.3547842]
[1752591371006,1.5512,2982.0,2980.9,0.03354691]
[1752591371212,1.5512,2982.0,2981.4,3.35405078]
[1752591371385,1.5512,2982.0,2981.6,3.3538291]
[1752591371585,1.5512,2982.0,2981.7,0.03353791]
[1752591371798,1.5512,2982.0,2981.3,3.35414089]
[1752591372021,1.5512,2982.0,2980.9,0.49813392]
[1752591372222,8.96049909,2981.7,2980.3,4.93486311]
[1752591372409,1.5512,2982.0,2980.4,0.52753885]
[1752591372588,1.5512,2982.0,2980.5,3.35514175]
[1752591372791,1.5512,2982.0,2980.6,0.03355029]
[1752591372991,3.35301848,2982.4,2981.4,3.35412893]
[1752591373245,3.35301848,2982.4,2980.5,3.35512645]
[1752591373246,3.3538163,2981.7,2981.0,3.35449035]
[1752591373525,16.71809909,2982.5,2980.5,6.137]
[1752591373526,1.6206,2982.5,2981.1,0.03354466]